[Event "*** SCC Grand Prix: Titled Tuesday Blitz"]
[Site "Chess.com"]
[Date "2020.07.07"]
[Round "2"]
[White "margarita_2703"]
[Black "j2806"]
[Result "1-0"]
[WhiteElo "2387"]
[BlackElo "2061"]
[TimeControl "180+1"]
[EndTime "10:18:16 PDT"]
[Termination "margarita_2703 won by resignation"]

1. Nf3 {[%clk 0:03:00.9]} 1... d5 {[%clk 0:02:56]} 2. d4 {[%clk 0:02:56.4]} 2...
e6 {[%clk 0:02:55.9]} 3. Bf4 {[%clk 0:02:54.5]} 3... Nf6 {[%clk 0:02:55]} 4. e3
{[%clk 0:02:53.6]} 4... c5 {[%clk 0:02:55.1]} 5. c3 {[%clk 0:02:52.7]} 5... b6
{[%clk 0:02:52.9]} 6. Nbd2 {[%clk 0:02:49]} 6... Bd6 {[%clk 0:02:45.2]} 7. Ne5
{[%clk 0:02:46.6]} 7... Qc7 {[%clk 0:02:30.6]} 8. Bd3 {[%clk 0:02:37.7]} 8...
O-O {[%clk 0:02:19.9]} 9. O-O {[%clk 0:02:26.7]} 9... Ba6 {[%clk 0:02:02.3]} 10.
Bxa6 {[%clk 0:02:08.4]} 10... Nxa6 {[%clk 0:02:01.9]} 11. Bg3 {[%clk 0:02:05.8]}
11... Nb8 {[%clk 0:01:55.1]} 12. f4 {[%clk 0:02:01.8]} 12... Nc6 {[%clk
0:01:51.5]} 13. Bh4 {[%clk 0:01:58.3]} 13... Ne4 {[%clk 0:01:34.4]} 14. Nxe4
{[%clk 0:01:37.9]} 14... dxe4 {[%clk 0:01:31.7]} 15. Nxc6 {[%clk 0:01:22.2]}
15... Qxc6 {[%clk 0:01:28.5]} 16. f5 {[%clk 0:01:20.3]} 16... exf5 {[%clk
0:01:21.5]} 17. Rxf5 {[%clk 0:01:17.8]} 17... Qc7 {[%clk 0:01:07.4]} 18. h3
{[%clk 0:01:09.9]} 18... Rae8 {[%clk 0:01:00.9]} 19. Qg4 {[%clk 0:01:07.3]}
19... Be7 {[%clk 0:00:52.3]} 20. Bxe7 {[%clk 0:01:04.5]} 20... Qxe7 {[%clk
0:00:45]} 21. Re5 {[%clk 0:01:00.2]} 21... Qb7 {[%clk 0:00:36.6]} 22. Rd1 {[%clk
0:00:56.1]} 22... Rxe5 {[%clk 0:00:32.2]} 23. dxe5 {[%clk 0:00:55.8]} 23... Qe7
{[%clk 0:00:26.3]} 24. Qxe4 {[%clk 0:00:53.2]} 24... f6 {[%clk 0:00:20.4]} 25.
Qd5+ {[%clk 0:00:49.6]} 25... Kh8 {[%clk 0:00:19.9]} 26. e6 {[%clk 0:00:47.8]}
26... Re8 {[%clk 0:00:19.1]} 27. Qc6 {[%clk 0:00:37.6]} 27... h6 {[%clk
0:00:17.8]} 28. Rd7 {[%clk 0:00:31.6]} 28... Qxe6 {[%clk 0:00:17.9]} 29. Qxe6
{[%clk 0:00:31.1]} 29... Rxe6 {[%clk 0:00:18]} 30. Rxa7 {[%clk 0:00:31.7]} 30...
Rxe3 {[%clk 0:00:18.3]} 31. Ra6 {[%clk 0:00:28]} 31... Re6 {[%clk 0:00:14.6]}
32. a4 {[%clk 0:00:26.2]} 32... Kg8 {[%clk 0:00:11.6]} 33. a5 {[%clk 0:00:25.8]}
33... Rc6 {[%clk 0:00:10.7]} 34. axb6 {[%clk 0:00:23]} 34... Kf7 {[%clk
0:00:10.7]} 35. b7 {[%clk 0:00:19.6]} 35... Rxa6 {[%clk 0:00:08.6]} 36. b8=Q
{[%clk 0:00:19]} 1-0

[Event "*** SCC Grand Prix: Titled Tuesday Blitz"]
[Site "Chess.com"]
[Date "2020.07.07"]
[Round "2"]
[White "ZverevLev"]
[Black "luizwas"]
[Result "1-0"]
[WhiteElo "2346"]
[BlackElo "1804"]
[TimeControl "180+1"]
[EndTime "10:18:16 PDT"]
[Termination "ZverevLev won by checkmate"]

1. e4 {[%clk 0:03:00.9]} 1... e6 {[%clk 0:03:00.2]} 2. d4 {[%clk 0:02:58.9]}
2... d5 {[%clk 0:03:00.4]} 3. Nc3 {[%clk 0:02:54.8]} 3... Bb4 {[%clk 0:02:56.5]}
4. e5 {[%clk 0:02:52.4]} 4... c5 {[%clk 0:02:56.6]} 5. a3 {[%clk 0:02:47.7]}
5... Bxc3+ {[%clk 0:02:56.9]} 6. bxc3 {[%clk 0:02:48.4]} 6... Qc7 {[%clk
0:02:57.5]} 7. Qg4 {[%clk 0:02:45.2]} 7... f5 {[%clk 0:02:57.9]} 8. Qg3 {[%clk
0:02:43.6]} 8... cxd4 {[%clk 0:02:57.3]} 9. cxd4 {[%clk 0:02:42.4]} 9... Ne7
{[%clk 0:02:48.6]} 10. Bd2 {[%clk 0:02:38.8]} 10... Qxc2 {[%clk 0:02:47.7]} 11.
Bd3 {[%clk 0:02:30.1]} 11... Qc6 {[%clk 0:02:41.2]} 12. Rc1 {[%clk 0:02:28.4]}
12... Qd7 {[%clk 0:02:38.1]} 13. Qxg7 {[%clk 0:02:26.2]} 13... Rg8 {[%clk
0:02:37.5]} 14. Qxh7 {[%clk 0:02:25.9]} 14... Rxg2 {[%clk 0:02:36.9]} 15. Nf3
{[%clk 0:02:23]} 15... Nbc6 {[%clk 0:02:27.4]} 16. Bg5 {[%clk 0:01:55.3]} 16...
Rg4 {[%clk 0:02:19.3]} 17. Qh8+ {[%clk 0:01:45.2]} 17... Kf7 {[%clk 0:02:16.7]}
18. Bf6 {[%clk 0:01:27.4]} 18... Rg8 {[%clk 0:02:09.3]} 19. Qh5+ {[%clk
0:01:24.4]} 19... Kf8 {[%clk 0:02:06.3]} 20. Rg1 {[%clk 0:01:22.6]} 20... Rxg1+
{[%clk 0:01:52.6]} 21. Nxg1 {[%clk 0:01:23.5]} 21... Ng8 {[%clk 0:01:50.7]} 22.
Qh8 {[%clk 0:01:21.1]} 22... Qf7 {[%clk 0:01:46.3]} 23. Nf3 {[%clk 0:01:19.1]}
23... Qg6 {[%clk 0:01:36.7]} 24. Ng5 {[%clk 0:01:14.9]} 24... Qh6 {[%clk
0:01:33.4]} 25. Qxh6+ {[%clk 0:01:05.9]} 25... Nxh6 {[%clk 0:01:34.3]} 26. Nf3
{[%clk 0:01:06]} 26... Ng4 {[%clk 0:01:31.4]} 27. Bg5 {[%clk 0:01:05.3]} 27...
Bd7 {[%clk 0:01:27.3]} 28. h3 {[%clk 0:01:03.8]} 28... Nxd4 {[%clk 0:01:08]} 29.
Nxd4 {[%clk 0:01:02.5]} 29... Nxe5 {[%clk 0:01:08.4]} 30. Be2 {[%clk 0:01:01.4]}
30... Rc8 {[%clk 0:01:04]} 31. Rxc8+ {[%clk 0:00:59.2]} 31... Bxc8 {[%clk
0:01:04.9]} 32. Bf4 {[%clk 0:00:57]} 32... Ng6 {[%clk 0:01:01]} 33. Bd6+ {[%clk
0:00:56.5]} 33... Kf7 {[%clk 0:01:00.2]} 34. Nf3 {[%clk 0:00:56.4]} 34... Bd7
{[%clk 0:00:59.4]} 35. Ne5+ {[%clk 0:00:55.9]} 35... Nxe5 {[%clk 0:00:58.4]} 36.
Bxe5 {[%clk 0:00:56.8]} 36... Kg6 {[%clk 0:00:57.1]} 37. f4 {[%clk 0:00:55.7]}
37... Ba4 {[%clk 0:00:51]} 38. h4 {[%clk 0:00:53.8]} 38... Bc2 {[%clk
0:00:50.3]} 39. Kd2 {[%clk 0:00:52]} 39... Be4 {[%clk 0:00:48.9]} 40. h5+ {[%clk
0:00:51.4]} 40... Kf7 {[%clk 0:00:47.5]} 41. Ke3 {[%clk 0:00:48.1]} 41... a6
{[%clk 0:00:44]} 42. Kf2 {[%clk 0:00:48]} 42... Bb1 {[%clk 0:00:41.6]} 43. Kg3
{[%clk 0:00:47.6]} 43... b5 {[%clk 0:00:37.2]} 44. Kh4 {[%clk 0:00:46.7]} 44...
Kg8 {[%clk 0:00:34.9]} 45. h6 {[%clk 0:00:44]} 45... Kh7 {[%clk 0:00:34]} 46.
Kg5 {[%clk 0:00:43.4]} 46... Be4 {[%clk 0:00:30.9]} 47. Bh5 {[%clk 0:00:43]}
47... a5 {[%clk 0:00:28]} 48. Bg6+ {[%clk 0:00:43.9]} 48... Kg8 {[%clk
0:00:27.6]} 49. h7+ {[%clk 0:00:44.8]} 49... Kf8 {[%clk 0:00:27.6]} 50. h8=Q+
{[%clk 0:00:44.7]} 50... Ke7 {[%clk 0:00:28.5]} 51. Qe8# {[%clk 0:00:43]} 1-0

[Event "*** SCC Grand Prix: Titled Tuesday Blitz"]
[Site "Chess.com"]
[Date "2020.07.07"]
[Round "2"]
[White "GigaQuparadze"]
[Black "GoltsevDmitry2000"]
[Result "1-0"]
[WhiteElo "2878"]
[BlackElo "2560"]
[TimeControl "180+1"]
[EndTime "10:18:17 PDT"]
[Termination "GigaQuparadze won by checkmate"]

1. e4 {[%clk 0:03:00.9]} 1... c5 {[%clk 0:02:55]} 2. Ne2 {[%clk 0:02:59.2]} 2...
e6 {[%clk 0:02:55.3]} 3. d4 {[%clk 0:02:58.4]} 3... cxd4 {[%clk 0:02:54.9]} 4.
Nxd4 {[%clk 0:02:59.3]} 4... a6 {[%clk 0:02:54]} 5. Nc3 {[%clk 0:02:58.7]} 5...
Qc7 {[%clk 0:02:53.2]} 6. g3 {[%clk 0:02:58.1]} 6... Nf6 {[%clk 0:02:52]} 7. Bg2
{[%clk 0:02:58.3]} 7... Nc6 {[%clk 0:02:51.2]} 8. O-O {[%clk 0:02:58]} 8... Bc5
{[%clk 0:02:50.9]} 9. Nb3 {[%clk 0:02:56.2]} 9... Ba7 {[%clk 0:02:50.5]} 10. Kh1
{[%clk 0:02:54.3]} 10... O-O {[%clk 0:02:50.6]} 11. f4 {[%clk 0:02:54]} 11... d6
{[%clk 0:02:50.4]} 12. g4 {[%clk 0:02:54.2]} 12... Rd8 {[%clk 0:02:50.1]} 13. g5
{[%clk 0:02:54.4]} 13... Ne8 {[%clk 0:02:50.3]} 14. f5 {[%clk 0:02:54.8]} 14...
Ne5 {[%clk 0:02:47.9]} 15. Qh5 {[%clk 0:02:51.2]} 15... exf5 {[%clk 0:02:33.4]}
16. exf5 {[%clk 0:02:43.1]} 16... Bxf5 {[%clk 0:02:29.3]} 17. Rxf5 {[%clk
0:02:34.2]} 17... g6 {[%clk 0:02:25.5]} 18. Qh3 {[%clk 0:02:24.4]} 18... gxf5
{[%clk 0:02:12.5]} 19. Bf4 {[%clk 0:02:23.7]} 19... Ng6 {[%clk 0:02:09.1]} 20.
Rf1 {[%clk 0:02:13.4]} 20... Qc4 {[%clk 0:02:00.4]} 21. Nd5 {[%clk 0:01:50]}
21... Qxc2 {[%clk 0:01:50.9]} 22. Bc1 {[%clk 0:01:20]} 22... Rac8 {[%clk
0:01:35]} 23. Qh6 {[%clk 0:01:16.9]} 23... Kh8 {[%clk 0:01:22.4]} 24. h4 {[%clk
0:00:53.1]} 24... Rc4 {[%clk 0:01:21.5]} 25. Bf4 {[%clk 0:00:40]} 25... Qxb2
{[%clk 0:01:10.5]} 26. Nd2 {[%clk 0:00:39.6]} 26... Rc1 {[%clk 0:00:52.6]} 27.
h5 {[%clk 0:00:39.6]} 27... Rxf1+ {[%clk 0:00:50.5]} 28. Nxf1 {[%clk 0:00:40.5]}
28... Qd4 {[%clk 0:00:44.4]} 29. Nfe3 {[%clk 0:00:33.4]} 29... Qg7 {[%clk
0:00:30.3]} 30. hxg6 {[%clk 0:00:32.9]} 30... Qxh6+ {[%clk 0:00:27.3]} 31. gxh6
{[%clk 0:00:33.8]} 31... fxg6 {[%clk 0:00:25]} 32. Nc4 {[%clk 0:00:34]} 32...
Bc5 {[%clk 0:00:21.1]} 33. Ne7 {[%clk 0:00:33.5]} 33... b5 {[%clk 0:00:13.6]}
34. Ne5 {[%clk 0:00:33.6]} 34... Nf6 {[%clk 0:00:02.1]} 35. Nf7# {[%clk
0:00:33.1]} 1-0

[Event "*** SCC Grand Prix: Titled Tuesday Blitz"]
[Site "Chess.com"]
[Date "2020.07.07"]
[Round "2"]
[White "fridaywins"]
[Black "Bacyanide"]
[Result "1-0"]
[WhiteElo "2288"]
[BlackElo "2449"]
[TimeControl "180+1"]
[EndTime "10:18:17 PDT"]
[Termination "fridaywins won by resignation"]

1. e4 {[%clk 0:02:47.5]} 1... c6 {[%clk 0:02:59.4]} 2. Nc3 {[%clk 0:02:46.9]}
2... d5 {[%clk 0:03:00.3]} 3. Nf3 {[%clk 0:02:46.4]} 3... dxe4 {[%clk
0:03:00.3]} 4. Nxe4 {[%clk 0:02:46]} 4... Nf6 {[%clk 0:03:01.2]} 5. Ng3 {[%clk
0:02:45.4]} 5... g6 {[%clk 0:03:00.5]} 6. d4 {[%clk 0:02:43]} 6... Bg7 {[%clk
0:03:01.4]} 7. h3 {[%clk 0:02:42.5]} 7... O-O {[%clk 0:03:01.6]} 8. Bd3 {[%clk
0:02:41.7]} 8... c5 {[%clk 0:03:00.6]} 9. dxc5 {[%clk 0:02:36.1]} 9... Nbd7
{[%clk 0:02:55.6]} 10. O-O {[%clk 0:02:31.2]} 10... Nxc5 {[%clk 0:02:55.3]} 11.
Be2 {[%clk 0:02:31.1]} 11... b6 {[%clk 0:02:50.6]} 12. Be3 {[%clk 0:02:27.1]}
12... Bb7 {[%clk 0:02:50]} 13. c3 {[%clk 0:02:20.4]} 13... Qc7 {[%clk
0:02:47.8]} 14. Nd4 {[%clk 0:02:07.4]} 14... a6 {[%clk 0:02:45.6]} 15. Bf3
{[%clk 0:02:04.3]} 15... Rad8 {[%clk 0:02:31]} 16. Bxb7 {[%clk 0:02:03.5]} 16...
Qxb7 {[%clk 0:02:31.9]} 17. Qf3 {[%clk 0:02:02.5]} 17... Qc7 {[%clk 0:02:14.7]}
18. Rad1 {[%clk 0:01:57.7]} 18... e5 {[%clk 0:02:14.6]} 19. Nb3 {[%clk
0:01:57.4]} 19... e4 {[%clk 0:02:06.1]} 20. Qe2 {[%clk 0:01:57.4]} 20... Nxb3
{[%clk 0:01:52.6]} 21. axb3 {[%clk 0:01:56.7]} 21... a5 {[%clk 0:01:48.7]} 22.
Qb5 {[%clk 0:01:56]} 22... Rb8 {[%clk 0:01:42.1]} 23. Rd2 {[%clk 0:01:43.6]}
23... Rfe8 {[%clk 0:01:39.9]} 24. Rfd1 {[%clk 0:01:43.4]} 24... h5 {[%clk
0:01:23.3]} 25. Ne2 {[%clk 0:01:43.1]} 25... Nh7 {[%clk 0:01:13.8]} 26. Bf4
{[%clk 0:01:42.4]} 26... Be5 {[%clk 0:01:13.8]} 27. Bxe5 {[%clk 0:01:32]} 27...
Rxe5 {[%clk 0:01:14.7]} 28. Qd7 {[%clk 0:01:32.4]} 28... Qxd7 {[%clk 0:01:10.2]}
29. Rxd7 {[%clk 0:01:32.3]} 29... Nf6 {[%clk 0:01:09.6]} 30. Rd8+ {[%clk
0:01:32.5]} 30... Rxd8 {[%clk 0:01:06.2]} 31. Rxd8+ {[%clk 0:01:33.4]} 31... Kg7
{[%clk 0:01:07.1]} 32. Rb8 {[%clk 0:01:33.9]} 32... Re6 {[%clk 0:00:57.7]} 33.
Nd4 {[%clk 0:01:33.5]} 33... Rd6 {[%clk 0:00:57.7]} 34. Kf1 {[%clk 0:01:31.2]}
34... Nd5 {[%clk 0:00:53.1]} 35. g3 {[%clk 0:01:28.3]} 35... h4 {[%clk
0:00:49.2]} 36. Re8 {[%clk 0:01:21.6]} 36... hxg3 {[%clk 0:00:47.3]} 37. fxg3
{[%clk 0:01:21.7]} 37... f5 {[%clk 0:00:45.5]} 38. Ke2 {[%clk 0:01:13.1]} 38...
Kf7 {[%clk 0:00:43.9]} 39. Rb8 {[%clk 0:01:12.3]} 39... Kf6 {[%clk 0:00:37.8]}
40. Rf8+ {[%clk 0:01:07.3]} 40... Ke7 {[%clk 0:00:35.5]} 41. Rb8 {[%clk
0:01:05.4]} 41... Rf6 {[%clk 0:00:33.3]} 42. Rb7+ {[%clk 0:01:03.3]} 42... Kd6
{[%clk 0:00:31.7]} 43. c4 {[%clk 0:01:03.6]} 43... Nb4 {[%clk 0:00:27.5]} 44.
Rxb6+ {[%clk 0:01:03.5]} 44... Ke5 {[%clk 0:00:28]} 45. Rxf6 {[%clk 0:01:01.6]}
45... Kxf6 {[%clk 0:00:28.9]} 46. c5 {[%clk 0:00:58.8]} 46... g5 {[%clk
0:00:28.8]} 47. c6 {[%clk 0:00:57.4]} 47... Nd5 {[%clk 0:00:27.8]} 48. Nb5
{[%clk 0:00:55.4]} 48... Ke7 {[%clk 0:00:26.3]} 49. Nc3 {[%clk 0:00:54.1]} 49...
Kd6 {[%clk 0:00:25.3]} 50. Nxd5 {[%clk 0:00:52.7]} 50... Kxd5 {[%clk 0:00:18.9]}
51. c7 {[%clk 0:00:53.6]} 51... f4 {[%clk 0:00:19.8]} 1-0

[Event "*** SCC Grand Prix: Titled Tuesday Blitz"]
[Site "Chess.com"]
[Date "2020.07.07"]
[Round "2"]
[White "diablanni"]
[Black "Yashasd1995"]
[Result "0-1"]
[WhiteElo "2296"]
[BlackElo "2514"]
[TimeControl "180+1"]
[EndTime "10:18:18 PDT"]
[Termination "Yashasd1995 won by resignation"]

1. e4 {[%clk 0:03:00]} 1... d5 {[%clk 0:02:59.3]} 2. exd5 {[%clk 0:02:59.1]}
2... Nf6 {[%clk 0:02:59.9]} 3. Bb5+ {[%clk 0:02:58.1]} 3... Bd7 {[%clk
0:02:59.5]} 4. Be2 {[%clk 0:02:58.4]} 4... Nxd5 {[%clk 0:02:58.2]} 5. d4 {[%clk
0:02:58]} 5... g6 {[%clk 0:02:58]} 6. Nf3 {[%clk 0:02:56.4]} 6... Bg7 {[%clk
0:02:58.2]} 7. O-O {[%clk 0:02:56.1]} 7... O-O {[%clk 0:02:58.6]} 8. c4 {[%clk
0:02:52.2]} 8... Nb6 {[%clk 0:02:58.9]} 9. Be3 {[%clk 0:02:48.3]} 9... Bg4
{[%clk 0:02:58.5]} 10. b3 {[%clk 0:02:46]} 10... Nc6 {[%clk 0:02:57.1]} 11. Nbd2
{[%clk 0:02:42.6]} 11... a5 {[%clk 0:02:17.7]} 12. Rc1 {[%clk 0:02:34.2]} 12...
e6 {[%clk 0:02:14.8]} 13. h3 {[%clk 0:02:31.6]} 13... Bxf3 {[%clk 0:02:14.1]}
14. Nxf3 {[%clk 0:02:31.4]} 14... a4 {[%clk 0:02:13.3]} 15. Qd2 {[%clk
0:02:16.2]} 15... axb3 {[%clk 0:02:11.5]} 16. axb3 {[%clk 0:02:14.9]} 16... Qe7
{[%clk 0:02:07.6]} 17. Rfd1 {[%clk 0:02:06]} 17... Rfd8 {[%clk 0:02:06.7]} 18.
Bf1 {[%clk 0:01:30.8]} 18... Qb4 {[%clk 0:02:02.2]} 19. Qc2 {[%clk 0:01:19.3]}
19... Ra3 {[%clk 0:01:58.3]} 20. Rb1 {[%clk 0:01:19.2]} 20... Rda8 {[%clk
0:01:54.4]} 21. Bd2 {[%clk 0:01:00.5]} 21... Qe7 {[%clk 0:01:53.5]} 22. Bc3
{[%clk 0:00:59.4]} 22... Ra2 {[%clk 0:01:26.3]} 23. Rb2 {[%clk 0:00:54.4]} 23...
Qa3 {[%clk 0:01:24.1]} 24. Rdb1 {[%clk 0:00:31.3]} 24... Rxb2 {[%clk 0:01:22.7]}
25. Bxb2 {[%clk 0:00:30.7]} 25... Qe7 {[%clk 0:01:20.5]} 26. Rd1 {[%clk
0:00:24.1]} 26... Nb4 {[%clk 0:01:16.6]} 27. Qd2 {[%clk 0:00:20.6]} 27... Ra2
{[%clk 0:01:16.5]} 28. Ra1 {[%clk 0:00:20.4]} 28... Rxa1 {[%clk 0:01:15.5]} 29.
Bxa1 {[%clk 0:00:20.4]} 29... Nc6 {[%clk 0:01:15.9]} 30. Bc3 {[%clk 0:00:20.5]}
30... Qa3 {[%clk 0:01:14.8]} 31. Qc2 {[%clk 0:00:16.4]} 31... Nb4 {[%clk
0:01:13.9]} 32. Qd2 {[%clk 0:00:15.8]} 32... Na6 {[%clk 0:01:11.2]} 33. Qd1
{[%clk 0:00:14.4]} 33... Nd7 {[%clk 0:01:04.9]} 34. Nd2 {[%clk 0:00:13]} 34...
c5 {[%clk 0:01:02.4]} 35. Ne4 {[%clk 0:00:12.9]} 35... cxd4 {[%clk 0:00:51.4]}
36. Bxd4 {[%clk 0:00:12.7]} 36... Qe7 {[%clk 0:00:50]} 37. Bxg7 {[%clk
0:00:10.4]} 37... Kxg7 {[%clk 0:00:50.9]} 38. Qa1+ {[%clk 0:00:09.1]} 38... e5
{[%clk 0:00:50.4]} 39. g3 {[%clk 0:00:08.4]} 39... Nac5 {[%clk 0:00:45.9]} 40.
Qa3 {[%clk 0:00:05.6]} 40... b6 {[%clk 0:00:44.2]} 41. Nc3 {[%clk 0:00:05.6]}
41... Nf6 {[%clk 0:00:41.9]} 42. Bg2 {[%clk 0:00:04.9]} 42... e4 {[%clk
0:00:42]} 43. Qa7 {[%clk 0:00:03.5]} 43... Qxa7 {[%clk 0:00:41.2]} 0-1

[Event "*** SCC Grand Prix: Titled Tuesday Blitz"]
[Site "Chess.com"]
[Date "2020.07.07"]
[Round "2"]
[White "Djager97"]
[Black "isainz"]
[Result "0-1"]
[WhiteElo "2402"]
[BlackElo "2164"]
[TimeControl "180+1"]
[EndTime "10:18:23 PDT"]
[Termination "isainz won on time"]

1. e4 {[%clk 0:03:00.9]} 1... c5 {[%clk 0:02:59.3]} 2. Nf3 {[%clk 0:03:00.8]}
2... Nc6 {[%clk 0:02:57.4]} 3. d4 {[%clk 0:03:00.9]} 3... cxd4 {[%clk
0:02:57.6]} 4. Nxd4 {[%clk 0:03:01.8]} 4... e5 {[%clk 0:02:57.8]} 5. Nb5 {[%clk
0:03:01.8]} 5... d6 {[%clk 0:02:57.7]} 6. N1c3 {[%clk 0:03:01.8]} 6... a6 {[%clk
0:02:57.8]} 7. Na3 {[%clk 0:03:02.3]} 7... b5 {[%clk 0:02:58.1]} 8. Nd5 {[%clk
0:03:02.8]} 8... Nge7 {[%clk 0:02:57.4]} 9. c4 {[%clk 0:03:03.4]} 9... Nd4
{[%clk 0:02:56.6]} 10. cxb5 {[%clk 0:02:57.4]} 10... Nxd5 {[%clk 0:02:55.8]} 11.
exd5 {[%clk 0:02:58.3]} 11... Be7 {[%clk 0:02:55.1]} 12. Bc4 {[%clk 0:02:55.3]}
12... axb5 {[%clk 0:02:44.5]} 13. Nxb5 {[%clk 0:02:52.8]} 13... Ba6 {[%clk
0:02:41.1]} 14. Nxd4 {[%clk 0:02:08.7]} 14... Bxc4 {[%clk 0:02:22.3]} 15. Nc6
{[%clk 0:02:04.5]} 15... Qd7 {[%clk 0:02:16.5]} 16. b3 {[%clk 0:01:39]} 16...
Bb5 {[%clk 0:02:13.7]} 17. a4 {[%clk 0:01:31.2]} 17... Bxc6 {[%clk 0:02:03]} 18.
dxc6 {[%clk 0:01:32.1]} 18... Qxc6 {[%clk 0:02:03.4]} 19. O-O {[%clk 0:01:32.8]}
19... O-O {[%clk 0:01:59.6]} 20. b4 {[%clk 0:01:31.3]} 20... Qc4 {[%clk
0:01:48.6]} 21. b5 {[%clk 0:01:19.8]} 21... d5 {[%clk 0:01:48.1]} 22. Ba3 {[%clk
0:01:11.4]} 22... Bxa3 {[%clk 0:01:42.6]} 23. Rxa3 {[%clk 0:01:12.3]} 23... d4
{[%clk 0:01:42.7]} 24. Qc1 {[%clk 0:00:58.6]} 24... Rxa4 {[%clk 0:01:35]} 25.
Rxa4 {[%clk 0:00:52.8]} 25... Qxa4 {[%clk 0:01:32.6]} 26. Qc5 {[%clk 0:00:53.7]}
26... Re8 {[%clk 0:01:20.7]} 27. b6 {[%clk 0:00:45.4]} 27... h6 {[%clk
0:01:17.8]} 28. b7 {[%clk 0:00:39.8]} 28... Qd7 {[%clk 0:01:05.2]} 29. Rb1
{[%clk 0:00:34]} 29... Rb8 {[%clk 0:00:59.7]} 30. Qa7 {[%clk 0:00:12]} 30... Qd6
{[%clk 0:00:16]} 31. Rc1 {[%clk 0:00:06.3]} 31... Kh7 {[%clk 0:00:09.4]} 0-1

[Event "*** SCC Grand Prix: Titled Tuesday Blitz"]
[Site "Chess.com"]
[Date "2020.07.07"]
[Round "2"]
[White "comsac"]
[Black "Zhani-Z"]
[Result "0-1"]
[WhiteElo "2245"]
[BlackElo "2456"]
[TimeControl "180+1"]
[EndTime "10:18:24 PDT"]
[Termination "Zhani-Z won on time"]

1. e4 {[%clk 0:03:00.9]} 1... e5 {[%clk 0:02:58.3]} 2. Nf3 {[%clk 0:03:01.1]}
2... Nc6 {[%clk 0:02:58.7]} 3. Bc4 {[%clk 0:03:01.3]} 3... Bc5 {[%clk
0:02:57.8]} 4. c3 {[%clk 0:03:01.7]} 4... Nf6 {[%clk 0:02:57.5]} 5. d4 {[%clk
0:03:02.1]} 5... exd4 {[%clk 0:02:57.7]} 6. cxd4 {[%clk 0:03:03]} 6... Bb4+
{[%clk 0:02:57.8]} 7. Bd2 {[%clk 0:03:03.6]} 7... Bxd2+ {[%clk 0:02:57.4]} 8.
Nbxd2 {[%clk 0:03:04.5]} 8... d5 {[%clk 0:02:57.6]} 9. exd5 {[%clk 0:03:05.4]}
9... Nxd5 {[%clk 0:02:58.1]} 10. Qb3 {[%clk 0:03:05.8]} 10... Nce7 {[%clk
0:02:55.2]} 11. O-O {[%clk 0:03:05.8]} 11... O-O {[%clk 0:02:55.4]} 12. Rfe1
{[%clk 0:03:06.1]} 12... c6 {[%clk 0:02:55.6]} 13. a4 {[%clk 0:03:05.8]} 13...
Nb6 {[%clk 0:02:52.6]} 14. Bf1 {[%clk 0:02:53.8]} 14... Be6 {[%clk 0:02:25.4]}
15. Rxe6 {[%clk 0:01:54.8]} 15... fxe6 {[%clk 0:02:24.3]} 16. Qxe6+ {[%clk
0:01:55.7]} 16... Kh8 {[%clk 0:02:23.2]} 17. Ne5 {[%clk 0:01:51.7]} 17... Qe8
{[%clk 0:02:18]} 18. Ndf3 {[%clk 0:01:33.6]} 18... Nf5 {[%clk 0:01:58.2]} 19.
Qb3 {[%clk 0:01:32.9]} 19... Rb8 {[%clk 0:01:28.7]} 20. Re1 {[%clk 0:01:29.8]}
20... Nd5 {[%clk 0:01:24.8]} 21. Bc4 {[%clk 0:01:12]} 21... Qd8 {[%clk
0:01:14.8]} 22. Bxd5 {[%clk 0:00:44.2]} 22... cxd5 {[%clk 0:01:14.1]} 23. Qb5
{[%clk 0:00:44.8]} 23... a6 {[%clk 0:00:40.1]} 24. Qd7 {[%clk 0:00:36.3]} 24...
Nh6 {[%clk 0:00:25.8]} 25. Rc1 {[%clk 0:00:26.8]} 25... Rc8 {[%clk 0:00:22]} 26.
Rxc8 {[%clk 0:00:19.5]} 26... Qxc8 {[%clk 0:00:22.1]} 27. h3 {[%clk 0:00:06.8]}
27... Qxd7 {[%clk 0:00:21.6]} 28. Nxd7 {[%clk 0:00:07.7]} 28... Rc8 {[%clk
0:00:21.9]} 29. Nc5 {[%clk 0:00:06.1]} 29... a5 {[%clk 0:00:22.1]} 30. Nxb7
{[%clk 0:00:05.8]} 30... Rc1+ {[%clk 0:00:22.2]} 31. Kh2 {[%clk 0:00:05.7]}
31... Rc2 {[%clk 0:00:23.1]} 32. Nxa5 {[%clk 0:00:03]} 32... Rxb2 {[%clk
0:00:23.4]} 33. Nc6 {[%clk 0:00:02.8]} 33... Ra2 {[%clk 0:00:22.5]} 34. a5
{[%clk 0:00:02.7]} 34... Nf5 {[%clk 0:00:23]} 35. g4 {[%clk 0:00:01.4]} 35...
Nd6 {[%clk 0:00:22.9]} 0-1

[Event "*** SCC Grand Prix: Titled Tuesday Blitz"]
[Site "Chess.com"]
[Date "2020.07.07"]
[Round "2"]
[White "GM_LOADING"]
[Black "Fandorine"]
[Result "0-1"]
[WhiteElo "2563"]
[BlackElo "2882"]
[TimeControl "180+1"]
[EndTime "10:18:25 PDT"]
[Termination "Fandorine won by resignation"]

1. e4 {[%clk 0:03:00.9]} 1... e5 {[%clk 0:02:59.3]} 2. Nf3 {[%clk 0:03:01]} 2...
Nc6 {[%clk 0:02:59.8]} 3. Bc4 {[%clk 0:03:00.8]} 3... Nf6 {[%clk 0:02:58.6]} 4.
d3 {[%clk 0:03:00.8]} 4... Bc5 {[%clk 0:02:56.4]} 5. O-O {[%clk 0:03:00.2]} 5...
d6 {[%clk 0:02:56.6]} 6. c3 {[%clk 0:02:58.8]} 6... a6 {[%clk 0:02:56.7]} 7. a4
{[%clk 0:02:58.4]} 7... h6 {[%clk 0:02:56.1]} 8. b4 {[%clk 0:02:53.8]} 8... Ba7
{[%clk 0:02:55.5]} 9. Re1 {[%clk 0:02:54.3]} 9... Be6 {[%clk 0:02:41.7]} 10. Na3
{[%clk 0:02:50.4]} 10... O-O {[%clk 0:02:38.6]} 11. h3 {[%clk 0:02:49.5]} 11...
Ne7 {[%clk 0:02:38.4]} 12. Be3 {[%clk 0:02:46]} 12... Bxe3 {[%clk 0:02:37.5]}
13. Rxe3 {[%clk 0:02:46.9]} 13... Ng6 {[%clk 0:02:37.8]} 14. Bxe6 {[%clk
0:02:25.6]} 14... fxe6 {[%clk 0:02:38.7]} 15. Nc4 {[%clk 0:02:18.9]} 15... Qe8
{[%clk 0:02:27.3]} 16. d4 {[%clk 0:02:06.4]} 16... exd4 {[%clk 0:02:24.6]} 17.
cxd4 {[%clk 0:02:07.3]} 17... Nxe4 {[%clk 0:02:08.8]} 18. Rxe4 {[%clk
0:02:05.4]} 18... d5 {[%clk 0:02:09.2]} 19. Rg4 {[%clk 0:01:58.8]} 19... dxc4
{[%clk 0:02:09.6]} 20. Qc2 {[%clk 0:01:56.6]} 20... Ne7 {[%clk 0:02:02.7]} 21.
Qxc4 {[%clk 0:01:48.8]} 21... Qc6 {[%clk 0:01:55.6]} 22. Qe2 {[%clk 0:01:13.8]}
22... Nd5 {[%clk 0:01:53]} 23. Re1 {[%clk 0:00:55.5]} 23... Rae8 {[%clk
0:01:38.4]} 24. b5 {[%clk 0:00:51.9]} 24... axb5 {[%clk 0:01:37.2]} 25. axb5
{[%clk 0:00:52.8]} 25... Qd6 {[%clk 0:01:36]} 26. Ne5 {[%clk 0:00:41.1]} 26...
Rf6 {[%clk 0:01:17.6]} 27. Rg3 {[%clk 0:00:20.5]} 27... Nf4 {[%clk 0:01:06.9]}
28. Qd2 {[%clk 0:00:17.2]} 28... Ref8 {[%clk 0:01:00.4]} 29. Ng4 {[%clk
0:00:16.1]} 29... Rg6 {[%clk 0:00:54.4]} 30. Ree3 {[%clk 0:00:14.2]} 30... Rg5
{[%clk 0:00:40.9]} 31. h4 {[%clk 0:00:13.3]} 31... Rh5 {[%clk 0:00:34.5]} 32.
Ref3 {[%clk 0:00:09.7]} 32... Rxh4 {[%clk 0:00:24.6]} 33. Ne5 {[%clk 0:00:09.6]}
33... Qxd4 {[%clk 0:00:19]} 34. Qxd4 {[%clk 0:00:09.5]} 34... Ne2+ {[%clk
0:00:18.9]} 35. Kf1 {[%clk 0:00:10]} 35... Nxg3+ {[%clk 0:00:19.4]} 36. fxg3
{[%clk 0:00:06.3]} 36... Rxd4 {[%clk 0:00:19.9]} 0-1